fUST/lending_fUST_20240927
["ID","MTS","AMOUNT","RATE_DAILY","PERIOD"]
[339256231,1727409040087,-500.0,0.00019178,2]
[339256232,1727409040097,-508.70404606,0.00019178,2]
[339256233,1727409040107,-352.01920471,0.00019178,2]
[339256234,1727409040119,-504.92250013,0.00019178,2]
[339256235,1727409040129,-500.0,0.00019178,2]
[339256236,1727409040139,-504.21961253,0.00019178,2]
[339256237,1727409040149,-340.16622572,0.00019178,2]
[339256238,1727409040160,-500.0,0.00019178,2]
[339256239,1727409040169,-500.0,0.00019178,2]
[339256240,1727409040180,-500.0,0.00019178,2]
[339256241,1727409040189,-505.33591757,0.00019178,2]
[339256242,1727409040200,-500.0,0.00019178,2]
[339256243,1727409040211,-500.0,0.00019178,2]
[339256244,1727409040222,-500.0,0.00019178,2]
[339256245,1727409040232,-510.96468312,0.00019178,2]
[339256246,1727409040242,-500.0,0.00019178,2]
[339256247,1727409040254,-500.0,0.00019178,2]
[339256248,1727409040264,-512.44586229,0.00019178,2]
[339256249,1727409040273,-500.0,0.00019178,2]
[339256250,1727409040284,-500.0,0.00019178,2]
[339256251,1727409040294,-500.0,0.00019178,2]
[339256252,1727409040304,-500.0,0.00019178,2]
[339256253,1727409040314,-182.67926184,0.00019178,2]
[339256254,1727409040323,-315.69908596,0.00019178,2]
[339256255,1727409040334,-500.0,0.00019178,2]
[339256256,1727409040345,-508.62598827,0.00019178,2]
[339256257,1727409040355,-500.0,0.00019178,2]
[339256258,1727409040364,-500.0,0.00019178,2]
[339256259,1727409040374,-500.0,0.00019178,2]
[339256260,1727409040383,-505.58776362,0.00019178,2]
[339256261,1727409040394,-500.0,0.00019178,2]
[339256262,1727409040404,-500.0,0.00019178,2]
[339256263,1727409040413,-515.45,0.00019178,2]
[339256264,1727409040424,-500.0,0.00019178,2]
[339256265,1727409040435,-500.0,0.00019178,2]
[339256266,1727409040446,-328.18284378,0.00019178,2]
[339256267,1727409040456,-500.0,0.00019178,2]
[339256268,1727409040465,-500.0,0.00019178,2]
[339256269,1727409040475,-513.28879907,0.00019178,2]
[339256270,1727409040485,-640.84628451,0.00019178,2]
[339256271,1727409040495,-514.3839855,0.00019178,2]
[339256272,1727409040507,-511.77962822,0.00019178,2]
[339256273,1727409040518,-508.17203683,0.00019178,2]
[339256274,1727409040529,-510.55708519,0.00019178,2]
[339256275,1727409040539,-507.75875498,0.00019178,2]
[339256276,1727409040549,-507.68139395,0.00019178,2]
[339256277,1727409040559,-506.82071934,0.00019178,2]
[339256278,1727409040569,-507.21746871,0.00019178,2]
[339256279,1727409040579,-500.0,0.00019178,2]
[339256280,1727409040589,-500.0,0.00019178,2]
[339256281,1727409040599,-750.72,0.00019178,2]
[339256282,1727409040608,-151.0,0.00019178,2]
[339256283,1727409040618,-151.0,0.00019178,2]
[339256284,1727409040627,-279.361945,0.00019178,2]
[339256285,1727409040637,-519.79375099,0.00019178,2]
[339256286,1727409040647,-504.25399332,0.00019178,2]
[339256287,1727409040659,-508.23475484,0.00019178,2]
[339256288,1727409040668,-500.0,0.00019178,2]
[339256289,1727409040679,-500.0,0.00019178,2]
[339256290,1727409040689,-505.75552311,0.00019178,2]
[339256291,1727409040700,-506.07011982,0.00019178,2]
[339256292,1727409040709,-500.0,0.00019178,2]
[339256293,1727409040720,-500.0,0.00019178,2]
[339256294,1727409040730,-513.30267835,0.00019178,2]
[339256295,1727409040740,-502.37530805,0.00019178,2]
[339256296,1727409040752,-500.0,0.00019178,2]
[339256297,1727409040762,-507.07870571,0.00019178,2]
[339256298,1727409040772,-1917.79,0.00019178,2]
[339256299,1727409040782,-1370.48,0.00019178,2]
[339256300,1727409040792,-506.78731645,0.00019178,2]
[339256301,1727409040803,-1586.2,0.00019178,2]
[339256302,1727409040813,-537.37373621,0.00019178,2]
[339256303,1727409040823,-494.81367335,0.00019178,2]
[339256304,1727409040833,-500.0,0.00019178,2]
[339256305,1727409040843,-1339.74,0.00019178,2]
[339256306,1727409040853,-707.96,0.00019178,2]
[339256307,1727409040864,-508.7841733,0.00019178,2]
[339256308,1727409040873,-407.57807079,0.00019178,2]
[339256309,1727409040883,-500.0,0.00019178,2]
[339256310,1727409040893,-506.6433691,0.00019178,2]
[339256311,1727409040902,-151.0,0.00019178,2]
[339256312,1727409040912,-500.0,0.00019178,2]
[339256313,1727409040922,-500.0,0.00019178,2]
[339256314,1727409040931,-503.08683379,0.00019178,2]
[339256315,1727409040940,-500.0,0.00019178,2]
[339256316,1727409040949,-503.05146831,0.00019178,2]
[339256317,1727409040959,-500.0,0.00019178,2]
[339256318,1727409040968,-500.0,0.00019178,2]
[339256319,1727409040978,-500.0,0.00019178,2]
[339256320,1727409040987,-500.0,0.00019178,2]
[339256321,1727409040998,-151.0,0.00019178,2]
[339256322,1727409041010,-500.0,0.00019178,2]
[339256323,1727409041019,-151.0,0.00019178,2]
[339256324,1727409041029,-151.0,0.00019178,2]
[339256325,1727409041040,-151.0,0.00019178,2]
[339256326,1727409041049,-500.0,0.00019178,2]
[339256327,1727409041059,-500.0,0.00019178,2]
[339256328,1727409041068,-504.1519355,0.00019178,2]
[339256329,1727409041077,-151.0,0.00019178,2]
[339256330,1727409041087,-507.16289939,0.00019178,2]
[339256331,1727409041097,-397.52466371,0.00019178,2]
[339256332,1727409041107,-500.0,0.00019178,2]
[339256333,1727409041122,-500.0,0.00019178,2]
[339256334,1727409041132,-500.0,0.00019178,2]
[339256335,1727409041142,-500.0,0.00019178,2]
[339256336,1727409041151,-500.0,0.00019178,2]
[339256337,1727409041162,-500.0,0.00019178,2]
[339256338,1727409041172,-409.24455849,0.00019178,2]
[339256339,1727409041182,-500.0,0.00019178,2]
[339256340,1727409041191,-500.0,0.00019178,2]
[339256341,1727409041201,-514.90413926,0.00019178,2]
[339256342,1727409041211,-500.0,0.00019178,2]
[339256343,1727409041221,-500.0,0.00019178,2]
[339256344,1727409041230,-500.0,0.00019178,2]
[339256345,1727409041240,-500.0,0.00019178,2]
[339256346,1727409041254,-500.0,0.00019178,2]
[339256347,1727409041264,-523.95745318,0.00019178,2]
[339256348,1727409041276,-513.9071736,0.00019178,2]
[339256349,1727409041286,-254.477916,0.00019178,2]
[339256350,1727409041296,-500.0,0.00019178,2]
[339256351,1727409041306,-505.53742141,0.00019178,2]
[339256352,1727409041316,-254.477916,0.00019178,2]
[339256353,1727409041326,-500.0,0.00019178,2]
[339256354,1727409041336,-517.7458574,0.00019178,2]
[339256355,1727409041346,-503.88295241,0.00019178,2]
[339256356,1727409041356,-504.43924134,0.00019178,2]
[339256357,1727409041366,-500.0,0.00019178,2]
[339256358,1727409041376,-500.0,0.00019178,2]
[339256359,1727409041385,-504.77009013,0.00019178,2]
[339256360,1727409041395,-500.0,0.00019178,2]
[339256361,1727409041405,-500.0,0.00019178,2]
[339256362,1727409041415,-500.0,0.00019178,2]
[339256363,1727409041425,-500.0,0.00019178,2]
[339256364,1727409041435,-504.36913356,0.00019178,2]
[339256365,1727409041446,-500.0,0.00019178,2]
[339256366,1727409041456,-509.11825541,0.00019178,2]
[339256367,1727409041466,-151.0,0.00019178,2]
[339256368,1727409041476,-512.31092145,0.00019178,2]
[339256369,1727409041486,-523.06538209,0.00019178,2]
[339256370,1727409041497,-509.92699727,0.00019178,2]
[339256371,1727409041516,-500.0,0.00019178,2]
[339256372,1727409041525,-500.0,0.00019178,2]
[339256373,1727409041535,-522.0485193,0.00019178,2]
[339256374,1727409041545,-500.0,0.00019178,2]
[339256375,1727409041555,-505.47306469,0.00019178,2]
[339256376,1727409041564,-21817.09,0.00019178,2]
[339256377,1727409041574,-500.0,0.00019178,2]
[339256378,1727409041584,-502.62246958,0.00019178,2]
[339256379,1727409041594,-500.0,0.00019178,2]
[339256380,1727409041603,-512.01984652,0.00019178,2]
[339256381,1727409041613,-500.0,0.00019178,2]
[339256382,1727409041624,-504.44823372,0.00019178,2]
[339256383,1727409041634,-151.0,0.00019178,2]
[339256384,1727409041645,-4192.57,0.00019178,2]
[339256385,1727409041654,-500.0,0.00019178,2]
[339256386,1727409041664,-1000.0,0.00019178,2]
[339256387,1727409041673,-500.0,0.00019178,2]
[339256388,1727409041683,-500.0,0.00019178,2]
[339256389,1727409041692,-484.41885902,0.00019178,2]
[339256390,1727409041702,-500.0,0.00019178,2]
[339256391,1727409041712,-286.42954028,0.00019178,2]
[339256392,1727409041722,-500.0,0.00019178,2]
[339256393,1727409041731,-500.0,0.00019178,2]
[339256394,1727409041741,-504.301689,0.00019178,2]
[339256395,1727409041755,-506.26085563,0.00019178,2]
[339256396,1727409041765,-500.0,0.00019178,2]
[339256397,1727409041775,-506.5671775,0.00019178,2]
[339256398,1727409041784,-500.0,0.00019178,2]
[339256399,1727409041793,-151.0,0.00019178,2]
[339256400,1727409041804,-510.57907973,0.00019178,2]
[339256401,1727409041813,-151.0,0.00019178,2]
[339256402,1727409041823,-508.10293949,0.00019178,2]
[339256403,1727409041834,-543.31043458,0.00019178,2]
[339256404,1727409041947,-151.0,0.00019178,2]
[339256405,1727409041957,-503.73732409,0.00019178,2]
[339256406,1727409041966,-151.0,0.00019178,2]
[339256407,1727409041978,-503.63707512,0.00019178,2]
[339256408,1727409041988,-151.0,0.00019178,2]
[339256409,1727409041998,-502.21952152,0.00019178,2]
[339256410,1727409042010,-504.11027069,0.00019178,2]
[339256411,1727409042020,-621.71854752,0.00019178,2]
[339256412,1727409042030,-500.0,0.00019178,2]
[339256413,1727409042041,-500.0,0.00019178,2]
[339256414,1727409042051,-510.45469994,0.00019178,2]
[339256415,1727409042062,-177.79641467,0.00019178,2]
[339256416,1727409042072,-504.87313067,0.00019178,2]
[339256417,1727409042082,-508.78771254,0.00019178,2]
[339256418,1727409042092,-500.0,0.00019178,2]
[339256419,1727409042101,-500.0,0.00019178,2]
[339256420,1727409042115,-500.0,0.00019178,2]
[339256421,1727409042126,-500.0,0.00019178,2]
[339256422,1727409042136,-229.64,0.00019178,2]
[339256423,1727409042146,-500.0,0.00019178,2]
[339256424,1727409042157,-500.0,0.00019178,2]
[339256425,1727409042166,-253.870569,0.00019178,2]
[339256426,1727409042176,-591.51753647,0.00019178,2]
[339256427,1727409042186,-500.0,0.00019178,2]
[339256428,1727409042196,-503.39237662,0.00019178,2]
[339256429,1727409042206,-510.19479574,0.00019178,2]
[339256430,1727409042215,-527.50529191,0.00019178,2]
[339256431,1727409042225,-510.52814387,0.00019178,2]
[339256432,1727409042234,-253.870569,0.00019178,2]
[339256433,1727409042243,-519.92179312,0.00019178,2]
[339256434,1727409042255,-500.0,0.00019178,2]
[339256435,1727409042264,-502.25459289,0.00019178,2]
[339256436,1727409042274,-501.58246172,0.00019178,2]
[339256437,1727409042283,-413.7038129,0.00019178,2]
[339256438,1727409042293,-505.35261575,0.00019178,2]
[339256439,1727409042303,-309.045752,0.00019178,2]
[339256440,1727409042313,-506.47387956,0.00019178,2]
[339256441,1727409042323,-623.21,0.00019178,2]
[339256442,1727409042334,-438.24229567,0.00019178,2]
[339256443,1727409042344,-624.19467706,0.00019178,2]
[339256444,1727409042355,-309.045752,0.00019178,2]
[339256445,1727409042365,-501.39593937,0.00019178,2]
[339256446,1727409042375,-505.87965917,0.00019178,2]
[339256447,1727409042384,-500.0,0.00019178,2]
[339256448,1727409042393,-500.96900052,0.00019178,2]
[339256449,1727409042403,-501.63113708,0.00019178,2]
[339256450,1727409042413,-500.0,0.00019178,2]
[339256451,1727409042422,-510.23012474,0.00019178,2]
[339256452,1727409042432,-576.96590482,0.00019178,2]
[339256453,1727409042442,-262.28491804,0.00019178,2]
[339256454,1727409042452,-500.0,0.00019178,2]
[339256455,1727409042462,-504.53655273,0.00019178,2]
[339256456,1727409042471,-500.0,0.00019178,2]
[339256457,1727409042480,-500.0,0.00019178,2]
[339256458,1727409042490,-317.78180645,0.00019178,2]
[339256459,1727409042499,-598.94032415,0.00019178,2]
[339256460,1727409042509,-169.9404142,0.00019178,2]
[339256461,1727409042519,-503.66934172,0.00019178,2]
[339256462,1727409042528,-502.41245971,0.00019178,2]
[339256463,1727409042539,-2432.81,0.00019178,2]
[339256464,1727409042550,-504.3754481,0.00019178,2]
[339256465,1727409042559,-500.0,0.00019178,2]
[339256466,1727409042568,-500.0,0.00019178,2]
[339256467,1727409042578,-151.0,0.00019178,2]
[339256468,1727409042587,-516.14742488,0.00019178,2]
[339256469,1727409042596,-503.00449786,0.00019178,2]
[339256470,1727409042605,-500.0,0.00019178,2]
[339256471,1727409042615,-516.82072127,0.00019178,2]
[339256472,1727409042624,-500.0,0.00019178,2]
[339256473,1727409042633,-507.60765609,0.00019178,2]
[339256474,1727409042642,-504.71657873,0.00019178,2]
[339256475,1727409042652,-151.0,0.00019178,2]
[339256476,1727409042661,-500.0,0.00019178,2]
[339256477,1727409042670,-503.98325033,0.00019178,2]
[339256478,1727409042680,-157.87579031,0.00019178,2]
[339256479,1727409042690,-500.0,0.00019178,2]
[339256481,1727409042700,-151.0,0.00019178,2]
[339256483,1727409042710,-502.11687097,0.00019178,2]
[339256485,1727409042719,-506.60099789,0.00019178,2]
[339256487,1727409042730,-500.0,0.00019178,2]
[339256489,1727409042739,-568.05262198,0.00019178,2]
[339256490,1727409042750,-504.73304,0.00019178,2]
[339256491,1727409042759,-500.0,0.00019178,2]
[339256492,1727409042768,-458.44976795,0.00019178,2]
[339256493,1727409042777,-501.95348336,0.00019178,2]
[339256494,1727409042787,-500.0,0.00019178,2]
[339256495,1727409042797,-568.52091909,0.00019178,2]
[339256496,1727409042806,-501.91466092,0.00019178,2]
[339256497,1727409042816,-502.35887065,0.00019178,2]
[339256498,1727409042825,-509.35228594,0.00019178,2]
[339256499,1727409042835,-510.55026176,0.00019178,2]
[339256500,1727409042844,-610.0,0.00019178,2]
[339256501,1727409042853,-589.14910012,0.00019178,2]
[339256502,1727409042863,-500.0,0.00019178,2]
[339256503,1727409042873,-500.0,0.00019178,2]
[339256504,1727409042882,-500.0,0.00019178,2]
[339256505,1727409042892,-506.75925166,0.00019178,2]
[339256506,1727409042901,-500.0,0.00019178,2]
[339256507,1727409042911,-157.93431139,0.00019178,2]
[339256508,1727409042930,-500.0,0.00019178,2]
[339256510,1727409042942,-151.0,0.00019178,2]
[339256512,1727409042953,-500.0,0.00019178,2]
[339256514,1727409042963,-464.26494316,0.00019178,2]
[339256515,1727409042973,-505.93780842,0.00019178,2]
[339256517,1727409042985,-500.0,0.00019178,2]
[339256519,1727409042995,-500.0,0.00019178,2]
[339256521,1727409043008,-505.36571462,0.00019178,2]
[339256522,1727409043018,-500.0,0.00019178,2]
[339256523,1727409043029,-527.97721592,0.00019178,2]
[339256524,1727409043039,-504.57965744,0.00019178,2]
[339256525,1727409043049,-500.0,0.00019178,2]
[339256526,1727409043060,-500.0,0.00019178,2]
[339256527,1727409043070,-2458.29,0.00019178,2]
[339256529,1727409043081,-504.49232934,0.00019178,2]
[339256531,1727409043091,-500.0,0.00019178,2]
[339256533,1727409043101,-506.87517003,0.00019178,2]
[339256536,1727409043125,-522.10456009,0.00019178,2]
[339256537,1727409043142,-151.0,0.00019178,2]
[339256538,1727409043161,-151.0,0.00019178,2]
[339256539,1727409043176,-521.21498956,0.00019178,2]
[339256540,1727409043188,-507.06799995,0.00019178,2]
[339256541,1727409043201,-500.0,0.00019178,2]
[339256542,1727409043216,-500.0,0.00019178,2]
[339256543,1727409043230,-520.55898909,0.00019178,2]
[339256544,1727409043243,-500.0,0.00019178,2]
[339256545,1727409043258,-500.0,0.00019178,2]
[339256546,1727409043271,-500.0,0.00019178,2]
[339256547,1727409043284,-553.05664782,0.00019178,2]
[339256548,1727409043297,-506.97307135,0.00019178,2]
[339256549,1727409043311,-500.0,0.00019178,2]
[339256550,1727409043324,-500.0,0.00019178,2]
[339256551,1727409043335,-517.1205899,0.00019178,2]
[339256552,1727409043349,-500.0,0.00019178,2]
[339256553,1727409043361,-566.83856903,0.00019178,2]
[339256554,1727409043374,-506.59010023,0.00019178,2]
[339256555,1727409043387,-500.0,0.00019178,2]
[339256556,1727409043399,-621.89,0.00019178,2]
[339256557,1727409043413,-511.82620235,0.00019178,2]
[339256558,1727409043423,-526.34264009,0.00019178,2]
[339256559,1727409043434,-223.592904,0.00019178,2]
[339256560,1727409043445,-497.67729194,0.00019178,2]
[339256561,1727409043456,-512.94867225,0.00019178,2]
[339256562,1727409043468,-223.592904,0.00019178,2]
[339256563,1727409043480,-155.105473,0.00019178,2]
[339256564,1727409043493,-472.35053575,0.00019178,2]
[339256565,1727409043506,-532.7567702,0.00019178,2]
[339256566,1727409043523,-500.0,0.00019178,2]
[339256567,1727409043536,-500.0,0.00019178,2]
[339256568,1727409043549,-152.187776,0.00019178,2]
[339256569,1727409043562,-500.0,0.00019178,2]
[339256570,1727409043573,-500.0,0.00019178,2]
[339256571,1727409043583,-225.66907128,0.00019178,2]
[339256572,1727409043593,-531.16464479,0.00019178,2]
[339256573,1727409043604,-568.45217455,0.00019178,2]
[339256574,1727409043616,-256.72957192,0.00019178,2]
[339256575,1727409043630,-151.0,0.00019178,2]
[339256576,1727409043643,-151.0,0.00019178,2]
[339256577,1727409043654,-503.28609664,0.00019178,2]
[339256578,1727409043665,-500.0,0.00019178,2]
[339256579,1727409043678,-500.0,0.00019178,2]
[339256580,1727409043691,-513.62200632,0.00019178,2]
[339256581,1727409043705,-517.52379486,0.00019178,2]
[339256582,1727409043719,-600.38907819,0.00019178,2]
[339256583,1727409043730,-862.2,0.00019178,2]
[339256584,1727409043741,-598.29239378,0.00019178,2]
[339256585,1727409043754,-500.0,0.00019178,2]
[339256586,1727409043766,-496.31801106,0.00019178,2]
[339256587,1727409043778,-500.0,0.00019178,2]
[339256588,1727409043791,-510.19242227,0.00019178,2]
[339256589,1727409043803,-500.0,0.00019178,2]
[339256590,1727409043817,-268.24143036,0.00019178,2]
[339256591,1727409043830,-500.0,0.00019178,2]
[339256592,1727409043842,-500.0,0.00019178,2]
[339256593,1727409043856,-512.31691537,0.00019178,2]
[339256594,1727409043868,-177.86813188,0.00019178,2]
[339256595,1727409043881,-500.0,0.00019178,2]
[339256596,1727409043894,-502.42042241,0.00019178,2]
[339256597,1727409043906,-500.0,0.00019178,2]
[339256598,1727409043918,-500.0,0.00019178,2]
[339256599,1727409043931,-500.0,0.00019178,2]
[339256600,1727409043941,-158.160284,0.00019178,2]
[339256601,1727409043957,-445.4218728,0.00019178,4]
[339256602,1727409043969,-652.6743941,0.00019178,2]
[339256603,1727409043982,-3033.31190535,0.00019352,2]
[339256604,1727409043996,-151.0,0.00019369,2]
[339256605,1727409044009,-254.477916,0.00019369,2]
[339256606,1727409044022,-254.477916,0.00019369,2]
[339256607,1727409044033,-151.0,0.00019369,2]
[339256608,1727409044045,-151.0,0.00019369,2]
[339256609,1727409044057,-151.0,0.00019369,2]
[339256610,1727409044068,-200.248334,0.00019369,2]
[339256611,1727409044079,-151.0,0.00019369,2]
[339256612,1727409044091,-223.592904,0.00019369,2]
[339256613,1727409044102,-223.592904,0.00019369,2]
[339256614,1727409044113,-151.0,0.00019383,2]
[339256615,1727409044125,-253.870569,0.00019383,2]
[339256616,1727409044136,-253.870569,0.00019383,2]
[339256617,1727409044148,-309.045752,0.00019383,2]
[339256618,1727409044159,-309.045752,0.00019383,2]
[339256619,1727409044170,-151.0,0.00019383,2]
[339256620,1727409044181,-151.0,0.00019383,2]
[339256621,1727409044192,-151.0,0.00019383,2]
[339256622,1727409044203,-302.06,0.000194,3]
[339256623,1727409044214,-350.0,0.000194,4]
[339256624,1727409044225,-151.0,0.00019442,2]
[339256625,1727409044236,-151.0,0.00019442,2]
[339256626,1727409044247,-151.0,0.00019442,2]
[339256627,1727409044258,-151.0,0.00019442,2]
[339256628,1727409044269,-160.0,0.00019451,2]
[339256629,1727409044280,-500.0,0.00019452,2]
[339256630,1727409044290,-626.93950403,0.00019452,2]
[339256631,1727409044302,-500.0,0.00019452,2]
[339256632,1727409044313,-500.0,0.00019452,2]
[339256633,1727409044323,-511.90092699,0.00019452,2]
[339256634,1727409044335,-507.47233672,0.00019452,2]
[339256635,1727409044346,-512.94965533,0.00019452,2]
[339256636,1727409044356,-510.59731312,0.00019452,2]
[339256637,1727409044367,-504.40958455,0.00019452,2]
[339256638,1727409044378,-500.0,0.00019452,2]
[339256639,1727409044391,-507.9605638,0.00019452,2]
[339256640,1727409044403,-510.27972244,0.00019452,2]
[339256641,1727409044415,-500.0,0.00019452,2]
[339256642,1727409044428,-525.94076572,0.00019452,2]
[339256643,1727409044440,-500.0,0.00019452,2]
[339256644,1727409044452,-500.0,0.00019452,2]
[339256645,1727409044463,-500.0,0.00019452,2]
[339256646,1727409044476,-507.71828498,0.00019452,2]
[339256647,1727409044488,-521.765494,0.00019452,2]
[339256648,1727409044500,-500.0,0.00019452,2]
[339256649,1727409044511,-514.68218228,0.00019452,2]
[339256650,1727409044521,-523.45704906,0.00019452,2]
[339256651,1727409044531,-526.07261198,0.00019452,2]
[339256652,1727409044540,-500.0,0.00019452,2]
[339256653,1727409044689,-515.45,0.00019452,2]
[339256654,1727409044703,-500.0,0.00019452,2]
[339256655,1727409044712,-500.0,0.00019452,2]
[339256656,1727409044723,-500.0,0.00019452,2]
[339256657,1727409044732,-513.58334214,0.00019452,2]
[339256658,1727409044743,-500.0,0.00019452,2]
[339256659,1727409044753,-503.39981811,0.00019452,2]
[339256660,1727409044763,-750.72,0.00019452,2]
[339256661,1727409044783,-151.0,0.00019452,2]
[339256662,1727409044794,-508.98862349,0.00019452,2]
[339256663,1727409044804,-165.55820456,0.00019452,2]
[339256664,1727409044814,-500.0,0.00019452,2]
[339256665,1727409044824,-515.90821142,0.00019452,2]
[339256666,1727409044833,-500.0,0.00019452,2]
[339256667,1727409044844,-1917.79,0.00019452,2]
[339256668,1727409044855,-1370.48,0.00019452,2]
[339256669,1727409044865,-1586.2,0.00019452,2]
[339256670,1727409044875,-500.0,0.00019452,2]
[339256671,1727409044885,-1339.74,0.00019452,2]
[339256672,1727409044894,-707.96,0.00019452,2]
[339256673,1727409044904,-500.0,0.00019452,2]
[339256674,1727409044914,-500.0,0.00019452,2]
[339256675,1727409044924,-500.0,0.00019452,2]
[339256676,1727409044934,-476.19780286,0.00019452,2]
[339256677,1727409044944,-435.2877693,0.00019452,2]
[339256678,1727409044956,-164.92206722,0.00019452,2]
[339256679,1727409044966,-506.90798431,0.00019452,2]
[339256680,1727409044976,-502.20995455,0.00019452,2]
[339256681,1727409044986,-477.67757379,0.00019452,2]
[339256682,1727409044995,-151.0,0.00019452,2]
[339256683,1727409045006,-151.0,0.00019452,2]
[339256684,1727409045016,-500.0,0.00019452,2]
[339256685,1727409045026,-226.55240345,0.00019452,2]
[339256686,1727409045038,-500.0,0.00019452,2]
[339256687,1727409045048,-519.752787,0.00019452,2]
[339256688,1727409045057,-514.45971434,0.00019452,2]
[339256689,1727409045067,-500.0,0.00019452,2]
[339256690,1727409045076,-513.74410623,0.00019452,2]
[339256691,1727409045086,-431.20908602,0.00019452,2]
[339256692,1727409045096,-500.0,0.00019452,2]
[339256693,1727409045105,-314.29715461,0.00019452,2]
[339256694,1727409045117,-500.0,0.00019452,2]
[339256695,1727409045127,-508.29261537,0.00019452,2]
[339256696,1727409045137,-500.0,0.00019452,2]
[339256697,1727409045146,-500.0,0.00019452,2]
[339256698,1727409045156,-500.0,0.00019452,2]
[339256699,1727409045165,-529.213578,0.00019452,2]
[339256700,1727409045175,-500.0,0.00019452,2]
[339256701,1727409045184,-507.25366586,0.00019452,2]
[339256702,1727409045194,-505.57790031,0.00019452,2]
[339256703,1727409045203,-500.0,0.00019452,2]
[339256704,1727409045213,-500.0,0.00019452,2]
[339256705,1727409045223,-21817.09,0.00019452,2]
[339256706,1727409045232,-500.0,0.00019452,2]
[339256707,1727409045242,-500.0,0.00019452,2]
[339256708,1727409045252,-500.0,0.00019452,2]
[339256709,1727409045262,-154.1035987,0.00019452,2]
[339256710,1727409045272,-4192.57,0.00019452,2]
[339256711,1727409045282,-1000.0,0.00019452,2]
[339256712,1727409045292,-198.40069538,0.00019452,2]
[339256713,1727409045302,-500.0,0.00019452,2]
[339256714,1727409045311,-511.40507203,0.00019452,2]
[339256715,1727409045321,-500.0,0.00019452,2]
[339256716,1727409045330,-512.88799537,0.00019452,2]
[339256717,1727409045340,-515.56728908,0.00019452,2]
[339256718,1727409045350,-500.0,0.00019452,2]
[339256719,1727409045359,-500.0,0.00019452,2]
[339256720,1727409045369,-509.06102621,0.00019452,2]
[339256721,1727409045379,-500.0,0.00019452,2]
[339256722,1727409045389,-511.24234283,0.00019452,2]
[339256723,1727409045402,-350.64891707,0.00019452,2]
[339256724,1727409045413,-229.64,0.00019452,2]
[339256725,1727409045422,-510.71150296,0.00019452,2]
[339256726,1727409045433,-500.0,0.00019452,2]
[339256727,1727409045444,-513.11714691,0.00019452,2]
[339256728,1727409045454,-172.52427923,0.00019452,2]
[339256729,1727409045464,-623.21,0.00019452,2]
[339256730,1727409045474,-502.42366268,0.00019452,2]
[339256731,1727409045484,-509.19445995,0.00019452,2]
[339256732,1727409045494,-508.5614065,0.00019452,2]
[339256733,1727409045505,-500.0,0.00019452,2]
[339256734,1727409045515,-500.0,0.00019452,2]
[339256735,1727409045527,-2432.81,0.00019452,2]
[339256736,1727409045537,-500.0,0.00019452,2]
[339256737,1727409045548,-500.0,0.00019452,2]
[339256738,1727409045558,-167.40369893,0.00019452,2]
[339256739,1727409045568,-503.9632168,0.00019452,2]
[339256740,1727409045578,-500.0,0.00019452,2]
[339256741,1727409045587,-342.5325947,0.00019452,2]
[339256742,1727409045597,-554.68958909,0.00019452,2]
[339256743,1727409045607,-500.0,0.00019452,2]
[339256744,1727409045618,-519.56465659,0.00019452,2]
[339256745,1727409045628,-500.0,0.00019452,2]
[339256747,1727409045638,-504.21684201,0.00019452,2]